bitfinex-derivatives/quotes_BTCF0:USTF0_20210708
["timestamp","ask_amount","ask_price","bid_price","bid_amount"]
[1625742284216,0.9785,32122.0,32072.0,0.462044]
[1625742284365,0.9785,32122.0,32073.0,0.5]
[1625742284665,0.9785,32122.0,32074.0,0.47036]
[1625742284816,0.9785,32122.0,32075.0,0.5]
[1625742284966,0.9785,32122.0,32075.0,0.81603]
[1625742285116,0.9785,32122.0,32076.0,0.47501744]
[1625742285269,0.9785,32122.0,32077.0,0.5]
[1625742285416,0.9785,32122.0,32077.0,0.51288333]
[1625742285568,0.9785,32122.0,32078.0,0.463513]
[1625742285717,0.0941,32121.0,32078.0,0.97639667]
[1625742286108,0.0941,32121.0,32079.0,0.01288343]
[1625742286402,0.0941,32121.0,32079.0,0.48161943]
[1625742286559,0.0941,32121.0,32080.0,0.5]
[1625742286713,0.01840453,32120.0,32080.0,0.5]
[1625742286852,0.01840453,32120.0,32081.0,0.464363]
[1625742287000,0.01840453,32120.0,32082.0,0.5]
[1625742287144,0.01840453,32120.0,32082.0,0.80027]
[1625742287397,0.28500453,32135.0,32083.0,0.467811]
[1625742287523,0.28500453,32135.0,32083.0,0.49909666]
[1625742287683,0.28500453,32135.0,32084.0,0.5]
[1625742287820,0.05520947,32134.0,32084.0,0.51288221]
[1625742287969,0.05520947,32134.0,32085.0,0.47422721]
[1625742288121,0.05520947,32134.0,32086.0,0.5]
[1625742288270,0.05520947,32134.0,32086.0,0.51288209]
[1625742288429,0.14750947,32134.0,32087.0,0.466696]
[1625742288577,0.14750947,32134.0,32087.0,0.47957775]
[1625742288868,0.05520768,32133.0,32088.0,0.01288178]
[1625742289334,0.31029768,32133.0,32088.0,0.01288178]
[1625742289634,0.05520762,32132.0,32088.0,0.01288178]
[1625742289920,0.05520762,32132.0,32088.0,0.0315]
[1625742290226,0.05520762,32132.0,32089.0,0.01288161]
[1625742290373,0.05520762,32132.0,32089.0,0.28744161]
[1625742290555,0.05520762,32132.0,32089.0,0.78744161]
[1625742290877,0.05520559,32133.0,32090.0,0.0128813]
[1625742291051,0.01840208,32131.0,32090.0,0.03128338]
[1625742291154,0.35755208,32131.0,32090.0,0.03128338]
[1625742291309,0.33915,32131.0,32090.0,0.0128813]
[1625742291601,0.01840256,32130.0,32090.0,0.0315]
[1625742291765,0.01840256,32130.0,32091.0,0.467043]
[1625742291906,0.01840256,32130.0,32091.0,1.29832446]
[1625742292180,0.05520767,32133.0,32092.0,0.01288179]
[1625742292522,0.0184013,32129.0,32092.0,0.03128309]
[1625742292634,0.01840214,32132.0,32092.0,0.03128309]
[1625742292926,0.01840237,32133.0,32092.0,0.06278309]
[1625742293371,0.7176969,32170.0,32093.0,0.01288148]
[1625742293535,0.4928,32148.0,32093.0,0.01288148]
[1625742293747,0.995,32169.0,32093.0,0.48150148]
[1625742293872,0.16415848,32173.0,32094.0,0.5]
[1625742293988,0.1287825,32168.0,32094.0,0.51287825]
[1625742294151,0.1287825,32168.0,32095.0,0.462291]
[1625742294302,0.05518443,32172.0,32096.0,0.5]
[1625742294434,0.14938443,32172.0,32100.0,1.9944]
[1625742294582,0.05518134,32167.0,32101.0,0.7]
[1625742294726,0.05518134,32167.0,32101.0,0.710139]
[1625742294876,0.0935,32166.0,32101.0,0.54140975]
[1625742295028,0.14868051,32166.0,32102.0,0.01287545]
[1625742295176,0.14868051,32166.0,32102.0,0.03126895]
[1625742295326,0.05518135,32165.0,32103.0,0.464295]
[1625742295478,0.05518135,32165.0,32104.0,0.5]
[1625742295626,0.05518135,32165.0,32104.0,0.51287565]
[1625742295777,0.05518135,32165.0,32105.0,0.465872]
[1625742295930,0.05518135,32165.0,32106.0,0.5]
[1625742296077,0.05518135,32165.0,32106.0,1.4771]
[1625742296228,0.05518135,32165.0,32107.0,0.467108]
[1625742296384,0.05518135,32165.0,32108.0,0.5]
[1625742296678,0.05518135,32165.0,32109.0,0.469161]
[1625742296828,0.05518135,32165.0,32110.0,0.5]
[1625742296983,0.07357697,32170.0,32110.0,0.51287429]
[1625742297178,0.07357697,32170.0,32111.0,0.003218]
[1625742297295,0.055173,32170.0,32111.0,0.0160917]
[1625742297586,0.055173,32170.0,32112.0,0.01287342]
[1625742297880,0.055173,32170.0,32113.0,0.467818]
[1625742298037,0.055173,32170.0,32114.0,0.5]
[1625742298182,0.055173,32170.0,32114.0,0.74189]
[1625742298336,0.055173,32170.0,32115.0,0.456788]
[1625742298576,0.055173,32170.0,32115.0,0.46966124]
[1625742298675,0.055173,32170.0,32116.0,0.00367839]
[1625742298950,0.055173,32170.0,32114.0,0.0315]
[1625742298951,1.037173,32170.0,32114.0,0.0315]
[1625742299132,1.309083,32170.0,32114.0,0.0315]
[1625742299239,0.4928,32153.0,32115.0,0.00367873]
[1625742299401,0.0936,32152.0,32115.0,0.00367873]
[1625742299691,0.0936,32152.0,32114.0,0.0315]
[1625742299994,0.01839625,32151.0,32114.0,0.0315]
[1625742301488,1.04687268,32148.0,32114.0,0.0315]
[1625742301647,0.74795846,32145.0,32114.0,0.0315]
[1625742301840,0.14993074,32142.0,32114.0,0.0315]
[1625742302101,0.44964014,32143.0,32114.0,0.0315]
[1625742302267,1.04861648,32147.0,32114.0,0.30808]
[1625742302388,1.4417577,32152.0,32114.0,0.30808]
[1625742302389,1.05013508,32151.0,32114.0,0.30808]
[1625742302539,1.09466803,32153.0,32115.0,0.464874]
[1625742302688,1.35013082,32156.0,32115.0,0.464874]
[1625742302916,1.35013082,32156.0,32116.0,0.5]
[1625742303006,1.35013082,32156.0,32116.0,0.51287255]
[1625742303141,1.35013082,32156.0,32117.0,0.46664]
[1625742303290,1.35013082,32156.0,32118.0,0.5]
[1625742303593,1.35013082,32156.0,32118.0,0.51286971]
[1625742303765,1.35688271,32173.0,32119.0,0.000809]
[1625742303898,1.35688271,32173.0,32119.0,0.01367747]
[1625742304066,0.01838218,32172.0,32119.0,0.01367747]
[1625742304203,0.01838218,32172.0,32119.0,0.21367747]
[1625742304338,1.35688271,32173.0,32120.0,0.50367609]
[1625742304638,1.35688271,32173.0,32121.0,0.67841188]
[1625742304789,1.35688271,32173.0,32122.0,0.5]
[1625742305101,1.35688271,32173.0,32123.0,0.469708]
[1625742305257,0.2929,32177.0,32124.0,0.5]
[1625742305415,0.2929,32177.0,32124.0,0.51286625]
[1625742305542,0.2929,32177.0,32125.0,0.456133]
[1625742305693,0.01838069,32176.0,32126.0,0.5]
[1625742305892,0.34691069,32176.0,32126.0,0.5]
[1625742306052,0.34691069,32176.0,32127.0,0.464365]
[1625742306143,0.34691069,32176.0,32128.0,0.5]
[1625742306290,0.32853,32176.0,32128.0,0.5]
[1625742306445,0.32853,32176.0,32128.0,0.77999]
[1625742306598,0.01838411,32175.0,32129.0,0.01286888]
[1625742306773,0.01838411,32175.0,32129.0,0.00367682]
[1625742306965,1.37234342,32168.0,32129.0,0.00367682]
[1625742307053,1.62940342,32168.0,32128.0,0.00367714]
[1625742307204,1.37166916,32166.0,32128.0,0.00367714]
[1625742307345,1.3710254,32165.0,32130.0,0.00367734]
[1625742307646,1.3710254,32165.0,32129.0,0.00367757]
[1625742307647,1.38941327,32165.0,32129.0,0.00367757]
[1625742307941,0.01838787,32164.0,32131.0,0.00367757]
[1625742308110,1.3710254,32165.0,32131.0,0.33747]
[1625742308258,1.37372236,32168.0,32131.0,0.83747]
[1625742308405,1.37576122,32171.0,32132.0,0.00367691]
[1625742308695,0.2929,32177.0,32132.0,0.00367691]
[1625742308696,1.37609679,32172.0,32132.0,0.50367691]
[1625742308996,1.37775145,32176.0,32132.0,0.50367691]
[1625742309144,0.2929,32177.0,32133.0,0.467139]
[1625742309294,0.2929,32177.0,32134.0,0.5]
[1625742309595,0.2929,32177.0,32135.0,0.004738]
[1625742309744,1.67038883,32177.0,32135.0,0.00841409]
[1625742309894,0.2929,32177.0,32135.0,0.00841409]
[1625742310044,0.2929,32177.0,32136.0,0.00367599]
[1625742310345,0.2929,32177.0,32137.0,0.467848]
[1625742310495,1.67011799,32177.0,32138.0,0.5]
[1625742310658,0.2929,32177.0,32138.0,0.80005]
[1625742311170,0.2929,32177.0,32139.0,0.465782]
[1625742312295,0.2929,32177.0,32139.0,0.497282]
[1625742312595,0.2929,32177.0,32140.0,0.5]
[1625742313199,0.2929,32177.0,32141.0,0.464346]
[1625742313351,0.2929,32177.0,32142.0,0.5]
[1625742313651,0.2929,32177.0,32143.0,0.469201]
[1625742313800,0.2929,32177.0,32144.0,0.5]
[1625742314099,0.2929,32177.0,32145.0,0.000229]
[1625742314249,0.2929,32177.0,32145.0,0.231999]
[1625742314400,0.2929,32177.0,32146.0,0.5]
[1625742314549,0.2929,32177.0,32145.0,0.231999]
[1625742314700,0.2929,32177.0,32147.0,0.46932]
[1625742315006,0.2929,32177.0,32146.0,0.45955]
[1625742315300,0.2929,32177.0,32148.0,0.464676]
[1625742315524,0.2929,32177.0,32145.0,0.23177]
[1625742315525,0.2929,32177.0,32146.0,0.467132]
[1625742315827,0.2929,32177.0,32145.0,0.23177]
[1625742315977,0.2929,32177.0,32147.0,0.0315]
[1625742316124,0.2929,32177.0,32147.0,0.37672]
[1625742316579,0.2929,32177.0,32148.0,0.5]
[1625742317175,0.2929,32177.0,32148.0,0.0315]
[1625742317804,0.2929,32177.0,32133.0,0.9501]
[1625742318026,0.52933,32177.0,32133.0,0.9501]
[1625742318100,1.23277418,32175.0,32133.0,0.9501]
[1625742318246,1.23277418,32175.0,32134.0,0.5]
[1625742318425,1.76266475,32177.0,32134.0,0.5]
[1625742318533,1.76266475,32177.0,32134.0,0.968799]
[1625742318832,0.52933,32177.0,32134.0,0.968799]
[1625742318981,0.52933,32177.0,32134.0,1.000299]
[1625742319131,0.2929,32177.0,32134.0,1.000299]
[1625742322958,0.2929,32177.0,32135.0,0.00367403]
[1625742323260,0.2929,32177.0,32136.0,0.465544]
[1625742323408,0.2929,32177.0,32137.0,0.5]
[1625742323559,0.2929,32177.0,32137.0,0.50367403]
[1625742323727,0.2929,32177.0,32138.0,0.464861]
[1625742323885,0.2929,32177.0,32139.0,0.5]
[1625742324161,0.2929,32177.0,32140.0,0.009527]
[1625742324464,0.2929,32177.0,32140.0,0.01320044]
[1625742324611,0.2929,32177.0,32141.0,0.00367353]
[1625742324910,0.2929,32177.0,32142.0,0.466583]
[1625742325228,0.2929,32177.0,32143.0,0.00367367]
[1625742325510,0.2929,32177.0,32141.0,0.0315]
[1625742325659,0.2929,32177.0,32140.0,0.46918]
[1625742325810,0.54716,32177.0,32133.0,0.9501]
[1625742325992,0.54716,32177.0,32143.0,0.0315]
[1625742326116,1.62400324,32177.0,32143.0,0.0315]
[1625742326263,1.62400324,32177.0,32133.0,0.9501]
[1625742326410,1.0757917,32174.0,32133.0,0.9501]
[1625742326561,1.07523933,32173.0,32133.0,0.9501]
[1625742327086,1.07558452,32174.0,32133.0,0.9501]
[1625742327385,1.07483708,32172.0,32133.0,0.9501]
[1625742327684,1.0751991,32171.0,32133.0,0.9501]
[1625742327836,1.2283633,32173.0,32133.0,0.9301]
[1625742327837,1.0756215,32173.0,32133.0,0.9301]
[1625742328288,1.07518725,32172.0,32133.0,0.9301]
[1625742328739,1.07518725,32172.0,32133.0,0.9616]
[1625742329039,1.22874703,32174.0,32133.0,0.9616]
[1625742329040,1.07576867,32174.0,32133.0,0.9616]
[1625742329189,1.07576867,32174.0,32134.0,0.00367533]
[1625742329341,1.07576867,32174.0,32134.0,0.34510533]
[1625742329494,0.54716,32177.0,32134.0,0.34510533]
[1625742329495,1.36998764,32177.0,32134.0,0.34510533]
[1625742329646,1.36998764,32177.0,32135.0,0.46905262]
[1625742329794,0.2929,32177.0,32136.0,0.5]
[1625742329942,0.2929,32177.0,32136.0,0.50367443]
[1625742330094,0.2929,32177.0,32137.0,0.464001]
[1625742330243,0.2929,32177.0,32137.0,0.46767531]
[1625742330392,0.2929,32177.0,32137.0,0.96767531]
[1625742330543,0.2929,32177.0,32138.0,0.00367418]
[1625742330844,0.2929,32177.0,32139.0,0.464176]
[1625742330992,0.2929,32177.0,32140.0,0.5]
[1625742331293,0.2929,32177.0,32141.0,0.47923865]
[1625742331444,0.2929,32177.0,32142.0,0.5]
[1625742331593,0.2929,32177.0,32142.0,0.5128584]
[1625742331742,0.2929,32177.0,32143.0,0.468936]
[1625742331893,0.2929,32177.0,32144.0,0.5]
[1625742332193,0.2929,32177.0,32145.0,0.000421]
[1625742332342,0.92709065,32187.0,32145.0,0.000421]
[1625742332497,0.92709065,32187.0,32145.0,0.01327864]
[1625742332646,0.9276499,32186.0,32145.0,0.01327864]
[1625742332945,0.9278888,32187.0,32146.0,0.00367354]
[1625742333247,0.9278888,32187.0,32147.0,0.467445]
[1625742333396,0.92823291,32188.0,32148.0,0.5]
[1625742333547,0.92823291,32188.0,32148.0,0.74404686]
[1625742333698,0.92823291,32188.0,32149.0,0.460916]
[1625742333848,0.92768162,32187.0,32149.0,0.4645895]
[1625742334148,0.92768162,32187.0,32150.0,0.0036735]
[1625742334448,0.92783977,32188.0,32151.0,0.467101]
[1625742334599,0.92811151,32189.0,32151.0,0.467101]
[1625742334897,0.92811151,32189.0,32152.0,0.00367322]
[1625742335497,0.92811151,32189.0,32148.0,0.23119]
[1625742335498,0.9280451,32188.0,32153.0,0.467371]
[1625742335798,0.9280451,32188.0,32153.0,0.00367331]
[1625742335949,0.92810318,32189.0,32153.0,0.00367331]
[1625742336098,0.92810318,32189.0,32154.0,0.00367322]
[1625742336398,0.92810318,32189.0,32155.0,0.46152]
[1625742336550,0.92810318,32189.0,32155.0,0.71676]
[1625742336850,0.92810318,32189.0,32156.0,0.00367327]
[1625742337002,0.92791906,32188.0,32156.0,0.00367327]
[1625742337151,0.92791906,32188.0,32157.0,0.466769]
[1625742337302,0.92795017,32189.0,32157.0,0.466769]
[1625742337453,0.9277631,32188.0,32157.0,0.466769]
[1625742337752,0.9277631,32188.0,32158.0,0.00367324]
[1625742338504,0.92829636,32189.0,32157.0,0.00367317]
[1625742339183,0.9704,32191.0,32158.0,0.461673]
[1625742339330,2.34486719,32196.0,32158.0,0.461673]
[1625742339484,1.39236719,32196.0,32158.0,0.461673]
[1625742339630,1.39236719,32196.0,32159.0,0.00367308]
[1625742339631,0.92947158,32190.0,32159.0,0.00367308]
[1625742342106,0.92910157,32191.0,32159.0,0.00367308]
[1625742342406,1.08444944,32192.0,32159.0,0.00367308]
[1625742342407,0.92898102,32190.0,32159.0,0.00367308]
[1625742342708,0.92908383,32191.0,32159.0,0.00367308]
[1625742344283,1.02198383,32191.0,32159.0,0.00367308]
[1625742344749,0.92908383,32191.0,32159.0,0.00367308]
[1625742345111,1.08413827,32192.0,32159.0,0.00367308]
[1625742345112,0.93036613,32190.0,32159.0,0.00367308]
[1625742345563,0.93050844,32191.0,32159.0,0.00367308]
[1625742347290,0.93050844,32191.0,32158.0,0.461673]
[1625742347587,0.93050844,32191.0,32159.0,0.00367286]
[1625742348198,0.9504075,32190.0,32159.0,0.00367286]
[1625742348637,0.93358126,32189.0,32159.0,0.00367286]
[1625742349164,0.93364624,32190.0,32159.0,0.00367286]
[1625742349393,0.93363203,32189.0,32159.0,0.00367286]
[1625742349617,0.93386037,32190.0,32158.0,0.461673]
[1625742349914,0.93407667,32191.0,32160.0,0.0036728]
[1625742350216,0.93407667,32191.0,32159.0,0.00367278]
[1625742350367,1.24538368,32194.0,32161.0,0.00367282]
[1625742350368,0.93394148,32190.0,32161.0,0.00367282]
[1625742350594,0.93599986,32189.0,32161.0,0.00367282]
[1625742350743,0.93599986,32189.0,32159.0,0.0036728]
[1625742350891,0.93610113,32190.0,32159.0,0.0036728]
[1625742351099,0.93610113,32190.0,32162.0,0.0036728]
[1625742351232,1.24794782,32193.0,32162.0,0.0036728]
[1625742351233,0.93711296,32193.0,32162.0,0.35169]
[1625742351506,1.03114343,32196.0,32163.0,0.00367202]
[1625742351671,0.93754458,32195.0,32163.0,0.00367202]
[1625742351966,0.93723563,32194.0,32163.0,0.00367202]
[1625742352852,0.93956025,32193.0,32163.0,0.00367202]
[1625742353307,0.93999723,32194.0,32163.0,0.00367202]
[1625742353470,0.93999723,32194.0,32163.0,0.03517202]
[1625742353599,0.0924,32195.0,32163.0,0.03517202]
[1625742353600,1.03231995,32195.0,32163.0,0.03517202]
[1625742353769,1.03231995,32195.0,32163.0,1.12099268]
[1625742353908,0.93991995,32195.0,32163.0,1.12099268]
[1625742354056,0.93991995,32195.0,32164.0,0.00367182]
[1625742354654,0.93991995,32195.0,32164.0,0.03517182]
[1625742354816,0.93991995,32195.0,32164.0,0.0315]
[1625742355024,0.93991995,32195.0,32165.0,0.00367203]
[1625742355173,0.94095031,32196.0,32165.0,0.00367203]
[1625742355623,0.94398539,32195.0,32165.0,1.11856839]
[1625742355922,0.94398539,32195.0,32166.0,0.00367209]
[1625742356542,0.94398539,32195.0,32166.0,0.03517209]
[1625742357048,1.10215858,32197.0,32166.0,0.03517209]
[1625742357049,0.9452546,32196.0,32167.0,0.00367205]
[1625742357273,0.94502728,32195.0,32167.0,0.00367205]
[1625742357574,0.94502728,32195.0,32167.0,0.03517205]
[1625742357723,0.07891067,32192.0,32167.0,0.12574364]
[1625742357874,0.07891067,32192.0,32168.0,0.00367207]
[1625742358023,0.07892467,32193.0,32168.0,0.09424078]
[1625742358324,0.07896792,32194.0,32170.0,0.09056958]
[1625742358474,0.07896792,32194.0,32170.0,0.37058958]
[1625742358625,0.07896792,32194.0,32170.0,0.28002]
[1625742358775,0.07896792,32194.0,32170.0,0.37058796]
[1625742359300,0.07896792,32194.0,32170.0,0.28002]
[1625742359825,1.19878859,32198.0,32171.0,0.00367196]
[1625742359826,0.09737903,32193.0,32171.0,0.00367196]
[1625742359980,0.0183598,32193.0,32171.0,0.00367196]
[1625742360128,0.07902281,32194.0,32171.0,0.00367196]
[1625742360504,0.07904699,32195.0,32171.0,0.00367196]
[1625742361103,0.01835905,32194.0,32170.0,0.37056426]
[1625742361280,0.0937,32193.0,32170.0,0.09054426]
[1625742361476,0.0937,32193.0,32169.0,0.0905442]
[1625742361760,0.07892752,32190.0,32165.0,0.09055431]
[1625742361920,0.07905294,32185.0,32166.0,0.09081942]
[1625742362034,0.30415294,32185.0,32166.0,0.09081942]
[1625742362193,0.07902652,32184.0,32165.0,0.09082439]
[1625742362306,0.09739049,32184.0,32165.0,0.09082439]
[1625742362617,0.09737735,32183.0,32164.0,0.09082823]
[1625742362904,0.07902975,32184.0,32165.0,0.09083765]
[1625742363060,0.24057544,32169.0,32165.0,0.09083765]
[1625742363207,0.55679544,32169.0,32166.0,0.09083349]
[1625742363505,0.55679544,32169.0,32165.0,0.09083464]
[1625742363676,0.55679544,32169.0,32164.0,0.09083479]
[1625742363976,0.55679544,32169.0,32165.0,0.09083502]
[1625742364144,0.24057544,32169.0,32165.0,0.38204502]
[1625742364294,0.24057544,32169.0,32167.0,0.09082677]
[1625742364424,0.07913371,32187.0,32167.0,0.72658137]
[1625742364624,0.07913371,32187.0,32168.0,0.00367233]
[1625742364740,1.26377007,32194.0,32172.0,0.09080168]
[1625742364741,0.07923013,32191.0,32172.0,0.09080168]
[1625742364873,0.07923013,32191.0,32172.0,0.32273168]
[1625742365007,0.24057544,32181.0,32180.0,0.24057544]
[1625742365156,0.24057544,32181.0,32180.0,0.54636544]
[1625742369660,0.24057544,32181.0,32180.0,0.63728641]
[1625742369960,0.24057544,32188.0,32180.0,0.63728641]
[1625742370109,0.07949835,32196.0,32180.0,0.63728641]
[1625742370261,0.07954404,32197.0,32182.0,0.09091743]
[1625742370560,0.95278196,32200.0,32183.0,0.09086289]
[1625742370561,0.07958459,32200.0,32183.0,0.09086289]
[1625742370860,0.07960552,32201.0,32185.0,0.0908602]
[1625742371011,0.07960552,32201.0,32200.0,0.24057544]
[1625742371160,0.07962787,32202.0,32200.0,0.56160544]
[1625742371310,0.63591036,32204.0,32200.0,0.56160544]
[1625742371311,0.07967903,32204.0,32200.0,0.56160544]
[1625742371612,0.07987382,32210.0,32200.0,0.56160544]
[1625742371911,0.07995736,32213.0,32200.0,0.56160544]
[1625742372060,0.01834858,32209.0,32201.0,0.463669]
[1625742372359,0.01834796,32212.0,32201.0,0.463669]
[1625742372660,0.07993945,32215.0,32201.0,0.463669]
[1625742372962,0.95751828,32218.0,32201.0,0.463669]
[1625742372963,0.08003162,32218.0,32201.0,0.495169]
[1625742373110,0.08003162,32218.0,32217.0,0.96230176]
[1625742373260,0.08007111,32219.0,32217.0,1.25439176]
[1625742373409,0.9590953,32222.0,32217.0,1.25439176]
[1625742373410,0.08008634,32220.0,32217.0,1.25439176]
[1625742374162,0.08015135,32219.0,32217.0,1.25439176]
[1625742374312,0.08015135,32219.0,32217.0,0.96230176]
[1625742374464,0.64072302,32219.0,32217.0,0.96230176]
[1625742374612,0.63969475,32218.0,32217.0,0.96230176]
[1625742374763,0.63969475,32218.0,32217.0,0.11413646]
[1625742375064,1.12084563,32218.0,32217.0,0.11413646]
[1625742375213,0.48115088,32218.0,32205.0,0.24057544]
[1625742375362,0.77177088,32218.0,32205.0,0.24057544]
[1625742375516,0.08008095,32215.0,32205.0,0.24057544]
[1625742375816,0.0801097,32216.0,32205.0,0.24057544]
[1625742375964,0.48115088,32218.0,32205.0,0.54238544]
[1625742376113,0.48115088,32218.0,32205.0,0.57388544]
[1625742376565,0.24057544,32218.0,32205.0,0.57388544]
[1625742377014,0.24057544,32222.0,32217.0,0.72172632]
[1625742377166,0.24057544,32222.0,32217.0,1.00655632]
[1625742377487,0.0802868,32226.0,32217.0,1.00655632]
[1625742377807,0.24057544,32227.0,32217.0,1.00655632]
[1625742379040,0.64116964,32235.0,32217.0,1.00655632]
[1625742379041,0.08034548,32235.0,32226.0,0.72172632]
[1625742379300,0.08040131,32237.0,32226.0,1.02269632]
[1625742379438,0.72254034,32239.0,32226.0,1.02269632]
[1625742379590,0.08045322,32239.0,32226.0,1.02269632]
[1625742379867,0.08048949,32240.0,32226.0,1.02269632]
[1625742380026,0.08048949,32240.0,32226.0,1.05419632]
[1625742380618,0.32087983,32241.0,32226.0,1.05419632]
[1625742381141,0.88248858,32245.0,32240.0,0.48115088]
[1625742381292,0.24057544,32245.0,32240.0,0.81171088]
[1625742382718,0.88392978,32252.0,32240.0,0.84321088]
[1625742382868,0.24057544,32252.0,32240.0,0.84321088]
[1625742383171,0.24057544,32252.0,32251.0,0.24057544]
[1625742383617,0.24057544,32252.0,32240.0,0.51265088]
[1625742383773,0.47106544,32252.0,32240.0,0.48115088]
[1625742384097,1.11276416,32252.0,32240.0,0.48115088]
[1625742384373,0.64122711,32250.0,32240.0,0.48115088]
[1625742384519,1.11150125,32252.0,32240.0,0.48115088]
[1625742384969,1.11150125,32252.0,32227.0,0.9598]
[1625742384970,0.64031421,32251.0,32227.0,0.9598]
[1625742385118,0.24057544,32235.0,32234.0,0.24057544]
[1625742385271,0.47283544,32235.0,32234.0,0.24057544]
[1625742386188,0.23226,32235.0,32234.0,0.24057544]
[1625742386323,0.24057544,32252.0,32234.0,0.24057544]
[1625742386473,0.24057544,32252.0,32234.0,0.45915544]
[1625742386774,0.24057544,32252.0,32235.0,0.466667]
[1625742387077,0.24057544,32251.0,32246.0,0.24057544]
[1625742387223,0.24057544,32251.0,32246.0,0.53649544]
[1625742388729,0.24057544,32251.0,32246.0,0.29592]
[1625742388910,0.24057544,32251.0,32235.0,0.0315]
[1625742389176,0.24057544,32236.0,32234.0,0.24057544]
[1625742390384,0.24057544,32245.0,32234.0,0.24057544]
[1625742391128,0.24057544,32245.0,32244.0,0.24057544]
[1625742397289,0.24057544,32245.0,32242.0,0.24057544]
[1625742397457,0.57673544,32245.0,32242.0,0.24057544]
[1625742397892,0.57673544,32245.0,32237.0,0.24057544]
[1625742399167,0.24057544,32238.0,32237.0,0.24057544]
[1625742401799,0.24057544,32238.0,32237.0,0.74057544]
[1625742401943,0.24057544,32245.0,32237.0,0.74057544]
[1625742403071,0.24057544,32245.0,32237.0,0.24057544]
[1625742403222,0.24057544,32245.0,32242.0,0.24057544]
[1625742405175,0.24057544,32243.0,32242.0,0.24057544]
[1625742405324,0.45905544,32243.0,32242.0,0.24057544]
[1625742405925,0.45905544,32243.0,32224.0,0.2]
[1625742406226,0.45905544,32243.0,32228.0,0.0036658]
[1625742407199,0.48115088,32229.0,32228.0,0.0036658]
[1625742407350,0.82833088,32229.0,32228.0,0.0036658]
[1625742409981,0.48115088,32229.0,32228.0,0.0036658]
[1625742410130,0.24057544,32229.0,32228.0,0.0036658]
[1625742410880,0.24057544,32229.0,32228.0,0.01282966]
[1625742411331,0.24057544,32233.0,32228.0,0.2534051]
[1625742411480,0.24057544,32233.0,32229.0,0.5]
[1625742411632,0.24057544,32233.0,32229.0,0.51282943]
[1625742411933,0.24057544,32233.0,32230.0,0.00366573]
[1625742413209,0.24057544,32233.0,32232.0,0.24057544]
[1625742413658,0.24057544,32233.0,32232.0,0.24424125]
[1625742414487,0.24057544,32233.0,32232.0,0.74424125]
[1625742414936,0.24057544,32233.0,32232.0,0.24424125]
[1625742415086,0.24057544,32233.0,32232.0,0.74424125]
[1625742415240,0.24057544,32233.0,32232.0,0.24424125]
[1625742416138,0.24057544,32233.0,32232.0,0.74424125]
[1625742417042,0.24057544,32233.0,32232.0,0.24424125]
[1625742421997,0.57263544,32233.0,32232.0,0.24424125]
[1625742422597,0.57263544,32233.0,32232.0,0.00366581]
[1625742422895,0.57263544,32233.0,32229.0,0.00366642]
[1625742423271,0.48115088,32230.0,32221.0,0.00366649]
[1625742423570,0.48115088,32230.0,32220.0,0.7]
[1625742423720,0.48115088,32230.0,32222.0,0.00366643]
[1625742424248,0.48115088,32230.0,32220.0,0.7]
[1625742424548,0.48115088,32230.0,32223.0,0.00366631]
[1625742424699,0.48115088,32230.0,32221.0,0.00366631]
[1625742425299,0.48115088,32230.0,32226.0,0.24057544]
[1625742425899,0.48115088,32230.0,32227.0,0.00366634]
[1625742426349,0.48115088,32230.0,32226.0,0.24057544]
[1625742427551,0.80119088,32230.0,32226.0,0.24057544]
[1625742428680,0.80119088,32230.0,32226.0,0.44057544]
[1625742430347,0.48115088,32230.0,32226.0,0.44057544]
[1625742431755,0.48115088,32230.0,32226.0,0.80381555]
[1625742432596,0.48115088,32230.0,32228.0,0.36372683]
[1625742433033,0.48115088,32230.0,32227.0,0.90932012]
[1625742433333,0.48115088,32230.0,32227.0,0.36372987]
[1625742434761,0.48115088,32230.0,32229.0,0.36432301]
[1625742435061,0.48115088,32230.0,32228.0,0.9108091]
[1625742435213,0.49948491,32230.0,32228.0,0.9108091]
[1625742435362,0.49948491,32230.0,32228.0,0.36432458]
[1625742435518,0.48115088,32230.0,32228.0,0.36432458]
[1625742436114,0.01833453,32229.0,32228.0,0.36432458]
[1625742436566,0.48115088,32230.0,32228.0,0.36432458]
[1625742436715,0.48115088,32230.0,32228.0,1.27692761]
[1625742437015,0.48115088,32230.0,32229.0,1.27689202]
[1625742437466,0.48115088,32230.0,32229.0,0.54723944]
[1625742437916,0.48115088,32230.0,32229.0,1.27690151]
[1625742438368,0.48115088,32230.0,32229.0,2.3713752]
[1625742442049,0.48115088,32230.0,32229.0,1.27690151]
[1625742442654,0.49948432,32230.0,32229.0,1.27690151]
[1625742443851,0.49948432,32230.0,32229.0,0.54723944]
[1625742445052,0.49948432,32230.0,32229.0,1.27752945]
[1625742445653,0.49948432,32230.0,32229.0,0.36514773]
[1625742446421,0.49948432,32230.0,32229.0,0.91282664]
[1625742446578,0.74632432,32230.0,32229.0,0.91282664]
[1625742446708,0.74632432,32230.0,32224.0,1.27783962]
[1625742447006,0.74632432,32230.0,32223.0,1.47784596]
[1625742447007,0.01833393,32229.0,32223.0,1.47784596]
[1625742447158,0.01833393,32229.0,32223.0,0.2]
[1625742447459,0.13052862,32224.0,32223.0,1.47785497]
[1625742447757,0.13052862,32224.0,32223.0,0.2]
[1625742449482,0.37110406,32224.0,32223.0,0.2]
[1625742450685,0.38944025,32224.0,32223.0,0.2]
[1625742451286,0.38944025,32224.0,32221.0,0.2]
[1625742451435,0.24057544,32222.0,32221.0,0.2]
[1625742451585,0.45439544,32222.0,32221.0,0.2]
[1625742451886,0.47273186,32222.0,32221.0,0.20366728]
[1625742452862,0.47273186,32222.0,32221.0,0.2]
[1625742453012,0.25891186,32222.0,32221.0,0.2]
[1625742453235,0.01833642,32222.0,32221.0,0.2]
[1625742453325,0.01833642,32222.0,32221.0,1.47756341]
[1625742453508,0.13052862,32224.0,32221.0,3.18187797]
[1625742453613,0.13052862,32224.0,32221.0,3.50898797]
[1625742453763,0.13052862,32224.0,32221.0,3.60138797]
[1625742453913,0.13052862,32224.0,32223.0,2.73741775]
[1625742454062,0.13052862,32224.0,32223.0,2.93741775]
[1625742454251,0.24057544,32230.0,32223.0,3.44108402]
[1625742454514,0.24057544,32230.0,32229.0,2.73717602]
[1625742454665,0.16500609,32241.0,32229.0,4.8941514]
[1625742454816,0.16500609,32241.0,32229.0,4.89781719]
[1625742454966,0.16505381,32243.0,32234.0,1.27728143]
[1625742455115,0.16505381,32243.0,32234.0,1.47728143]
[1625742455266,1.31927622,32248.0,32234.0,2.93694271]